fUSD/lending_fUSD_20241206
["ID","MTS","AMOUNT","RATE_DAILY","PERIOD"]
[344493845,1733513433657,-7556.7717,9.411e-05,2]
[344493846,1733513433666,-563.0,9.458e-05,2]
[344493847,1733513433675,-150.0,9.458e-05,2]
[344493848,1733513433685,-19906.9729,9.466e-05,2]
[344493849,1733513433695,-2500.0,9.466e-05,2]
[344493850,1733513433704,-2500.0,9.479e-05,2]
[344493851,1733513433713,-563.609,9.48e-05,2]
[344493852,1733513433723,-498.35,9.489e-05,2]
[344493853,1733513433732,-351.53943513,9.499e-05,2]
[344493854,1733513433741,-351.53943507,9.499e-05,2]
[344493855,1733513433750,-351.53943507,9.499e-05,2]
[344493856,1733513433761,-351.53943507,9.499e-05,2]
[344493857,1733513433771,-351.53943507,9.499e-05,2]
[344493858,1733513433780,-62.20416696,9.499e-05,2]
[344493859,1733513433793,-289.33526811,9.499e-05,2]
[344493860,1733513433802,-351.53943507,9.499e-05,2]
[344493861,1733513433812,-351.53943507,9.499e-05,2]
[344493862,1733513433822,-351.53943507,9.499e-05,2]
[344493863,1733513433831,-200.0,9.5e-05,3]
[344493864,1733513433840,-435.17,9.54e-05,2]
[344493865,1733513433849,-277.646552,9.563e-05,2]
[344493866,1733513433860,-392.67987568,9.581e-05,2]
[344493868,1733513438380,-633.0,9.458e-05,2]
[344493869,1733513438390,-2539.5989,9.581e-05,2]
[344493870,1733513438687,-16131.68368021,9.581e-05,2]
[344493871,1733513438699,-331.72771726,9.581e-05,2]
[344493872,1733513438710,-2921.184,9.581e-05,2]
[344493873,1733513438724,-8117.86779995,9.581e-05,2]
[344493876,1733513440398,-40940.87787972,9.581e-05,2]
[344493877,1733513440411,-44040.05390969,9.581e-05,2]
[344493878,1733513440421,-51192.87504434,9.582e-05,2]
[344493879,1733513440508,-1765.19418334,9.582e-05,2]
[344493882,1733513443443,-4960.55223103,9.582e-05,2]
[344493883,1733513443454,-2794.17247575,9.582e-05,2]
[344493884,1733513443466,-5000.26629855,9.582e-05,2]
[344493885,1733513443478,-1930.24380968,9.582e-05,2]
[344493886,1733513443514,-23710.83462611,9.582e-05,2]
[344493887,1733513443585,-744.5,9.582e-05,2]
[344493888,1733513443655,-9124.76019544,9.582e-05,2]
[344493889,1733513443667,-2209.89199367,9.582e-05,2]
[344493890,1733513443679,-419.81087525,9.582e-05,2]
[344493891,1733513443724,-11562.57202931,9.582e-05,2]
[344493892,1733513443733,-11671.0158529,9.583e-05,2]
[344493893,1733513443745,-332.9402034,9.583e-05,2]
[344493897,1733513446373,-103411.71770617,9.583e-05,2]
[344493898,1733513446382,-30070.78923319,9.584e-05,2]
[344493899,1733513446479,-5302.05528496,9.584e-05,2]
[344493900,1733513446492,-2332.27968204,9.584e-05,2]
[344493901,1733513446637,-77710.54956228,9.584e-05,2]
[344493902,1733513446647,-115415.67376247,9.585e-05,2]
[344493903,1733513446657,-115415.67376247,9.585e-05,2]
[344493904,1733513446667,-115415.67376247,9.586e-05,2]
[344493905,1733513446676,-53082.15548666,9.587e-05,2]
[344493906,1733513446824,-2550.69247321,9.587e-05,2]
[344493909,1733513527783,195.0,0.0002,120]
[344493981,1733514631753,-2706.98,8.219e-05,2]
[344493982,1733514631763,-250.0,8.375e-05,2]
[344493983,1733514631774,-284.58,8.431e-05,2]
[344493984,1733514631783,-193.93,8.433e-05,2]
[344493985,1733514631793,-250.0,8.514e-05,2]
[344493986,1733514631803,-250.0,8.556e-05,2]
[344493987,1733514631813,-150.0,8.56e-05,2]
[344493988,1733514631822,-1000.0,8.565e-05,2]
[344493989,1733514631831,-166.78,8.591e-05,2]
[344493990,1733514631840,-150.0,8.658e-05,2]
[344493991,1733514631850,-578.95,8.681e-05,2]
[344493992,1733514631860,-179.0,8.719e-05,2]
[344493993,1733514631869,-300.0,8.792e-05,2]
[344493994,1733514631879,-870.34,8.793e-05,2]
[344493995,1733514631888,-435.17,8.793e-05,2]
[344493996,1733514631898,-435.17,8.793e-05,2]
[344493997,1733514631907,-435.17,8.793e-05,2]
[344493998,1733514631917,-435.17,8.793e-05,2]
[344493999,1733514631926,-435.17,8.793e-05,2]
[344494000,1733514631935,-435.17,8.793e-05,2]
[344494001,1733514631945,-435.17,8.793e-05,2]
[344494002,1733514631955,-435.17,8.9e-05,2]
[344494003,1733514631965,-200.0,9.187e-05,2]
[344494004,1733514631975,-2838.4587,9.389e-05,2]
[344494005,1733514631984,-435.17,9.39e-05,2]
[344494006,1733514631998,-435.17,9.39e-05,2]
[344494007,1733514632007,-435.17,9.39e-05,2]
[344494008,1733514632018,-435.17,9.39e-05,2]
[344494009,1733514632027,-435.17,9.39e-05,2]
[344494010,1733514632039,-435.17,9.39e-05,2]
[344494011,1733514632049,-150.0,9.457e-05,2]
[344494012,1733514632058,-540.238,9.48e-05,2]
[344494013,1733514632068,-193.93,9.487e-05,2]
[344494014,1733514632077,-2500.0,9.489e-05,2]
[344494015,1733514632087,-2500.0,9.489e-05,2]
[344494016,1733514632097,-435.17,9.49e-05,2]
[344494017,1733514632106,-175.76971754,9.499e-05,2]
[344494018,1733514632116,-266.17493574,9.5e-05,2]
[344494019,1733514632125,-870.24,9.5e-05,2]
[344494020,1733514632135,-435.17,9.5e-05,2]
[344494021,1733514632145,-435.17,9.5e-05,2]
[344494022,1733514632154,-250.8206,9.563e-05,2]
[344494023,1733514632163,-704.58,9.57e-05,2]
[344494024,1733514632173,-435.17,9.57e-05,2]
[344494025,1733514632182,-7325.10172112,9.581e-05,2]
[344494026,1733514632194,-281.28988996,9.581e-05,2]
[344494027,1733514632206,-2587.67292242,9.581e-05,2]
[344494028,1733514632216,-2000.0,9.588e-05,2]
[344494029,1733514632226,-1008.062,9.588e-05,2]
[344494030,1733514632239,-891.94,9.588e-05,2]
[344494031,1733514632249,-187.17642651,9.588e-05,2]
[344494032,1733514632260,-308.68694623,9.588e-05,2]
[344494034,1733514632271,-281.28988996,9.588e-05,2]
[344494035,1733514632281,-53929.83475413,9.589e-05,2]
[344494036,1733514632311,-4499.78686975,9.589e-05,2]
[344494037,1733514632323,-2709.1,9.589e-05,2]
[344494038,1733514632335,-751.000004,9.589e-05,2]
[344494048,1733514637674,-20659.3429612,9.589e-05,2]
[344494062,1733514637960,-402.29942,9.589e-05,2]
[344494063,1733514637972,-8397.33288894,9.589e-05,2]
[344494064,1733514637984,-250.8206,9.589e-05,2]
[344494065,1733514637995,-8169.12827,9.589e-05,2]
[344494094,1733514639604,-597.19099428,8.375e-05,2]
[344494095,1733514639614,-15783.82223944,9.589e-05,2]
[344494096,1733514639624,-10995.53313796,9.589e-05,2]
[344494097,1733514639787,-403.88717027,9.589e-05,2]
[344494098,1733514639799,-487.2,9.589e-05,2]
[344494099,1733514639811,-398.62975953,9.589e-05,2]
[344494100,1733514639823,-1399.79399091,9.589e-05,2]
[344494101,1733514639835,-566.84138598,9.589e-05,2]
[344494102,1733514639847,-6123.0,9.589e-05,2]
[344494103,1733514639935,-4087.0847451,9.589e-05,2]
[344494104,1733514639946,-3593.47834983,9.589e-05,2]
[344494105,1733514639957,-1746.3324078,9.589e-05,2]
[344494106,1733514639969,-4829.16031994,9.589e-05,2]
[344494107,1733514639980,-11148.5019612,9.589e-05,2]
[344494108,1733514639991,-4055.97061801,9.589e-05,2]
[344494112,1733514643615,-3177.3979,9.589e-05,2]
[344494115,1733514643738,-2028.0,9.589e-05,2]
[344494116,1733514643864,-422.90000105,9.589e-05,2]
[344494266,1733514645574,-12638.9952,9.589e-05,2]
[344494298,1733514645871,-1016.85,9.589e-05,2]
[344494301,1733514645884,-2356.32393371,9.589e-05,2]
[344494303,1733514645896,-7017.9885272,9.589e-05,2]
[344494305,1733514645907,-10634.5999995,9.589e-05,2]
[344494307,1733514645918,-10190.50828289,9.589e-05,2]
[344494309,1733514645929,-285.12226361,9.589e-05,2]
[344494334,1733515831937,-580.87891067,8.219e-05,2]
[344494335,1733515832095,-1345.871211,8.219e-05,2]
[344494344,1733515832421,-644.87987833,8.219e-05,2]
[344494345,1733515832430,-250.0,8.265e-05,2]
[344494346,1733515832439,-223.4,8.291e-05,2]
[344494347,1733515832448,-194.51863934,8.291e-05,2]
[344494348,1733515832457,-734.52,8.344e-05,2]
[344494349,1733515832467,-250.0,8.344e-05,2]
[344494350,1733515832476,-150.0,8.423e-05,2]
[344494351,1733515832487,-1000.0,8.434e-05,2]
[344494352,1733515832496,-415.55,8.487e-05,2]
[344494353,1733515832505,-1013.9,8.585e-05,2]
[344494354,1733515832515,-517.73,8.61e-05,2]
[344494355,1733515832525,-209.26,8.66e-05,2]
[344494356,1733515832534,-150.0,8.768e-05,2]
[344494357,1733515832544,-606.12,8.768e-05,2]
[344494358,1733515832553,-435.17,8.793e-05,2]
[344494359,1733515832563,-434.46,8.798e-05,2]
[344494360,1733515832572,-435.17,8.818e-05,2]
[344494361,1733515832581,-435.17,8.818e-05,2]
[344494362,1733515832592,-300.0,8.827e-05,2]
[344494363,1733515832601,-870.04,8.828e-05,2]
[344494364,1733515832615,-435.17,8.858e-05,2]
[344494365,1733515832632,-1013.9,8.902e-05,2]
[344494366,1733515832642,-517.618,9.11e-05,2]
[344494367,1733515832652,-200.0,9.128e-05,2]
[344494368,1733515832666,-1013.9,9.22e-05,2]
[344494369,1733515832676,-428.67,9.286e-05,2]
[344494370,1733515832685,-435.17,9.286e-05,2]
[344494371,1733515832694,-435.17,9.286e-05,2]
[344494372,1733515832703,-1750.0,9.304e-05,2]
[344494373,1733515832712,-223.4,9.327e-05,2]
[344494374,1733515832722,-150.0,9.458e-05,2]
[344494375,1733515832731,-10182.92139693,9.458e-05,2]
[344494378,1733515837661,-1477.47,9.458e-05,2]
[344494380,1733515837765,-811.351313,9.458e-05,2]
[344494381,1733515837777,-1243.25729007,9.458e-05,2]
[344494382,1733515837786,-150.0,9.487e-05,2]
[344494383,1733515837795,-1000.0,9.488e-05,2]
[344494384,1733515837806,-2500.0,9.488e-05,2]
[344494385,1733515837815,-361.41576367,9.488e-05,2]
[344494386,1733515837827,-2138.58423633,9.488e-05,2]
[344494387,1733515837836,-2968.577,9.489e-05,2]
[344494388,1733515837845,-435.17,9.49e-05,2]
[344494389,1733515837855,-315.02497178,9.499e-05,2]
[344494390,1733515837864,-315.02497175,9.499e-05,2]
[344494391,1733515837873,-315.02497175,9.499e-05,2]
[344494392,1733515837883,-315.02497175,9.499e-05,2]
[344494393,1733515837893,-315.02497175,9.499e-05,2]
[344494394,1733515837902,-315.02497175,9.499e-05,2]
[344494395,1733515837911,-315.02497175,9.502e-05,2]
[344494396,1733515837921,-315.02497175,9.531e-05,2]
[344494397,1733515837930,-1013.9,9.538e-05,2]
[344494398,1733515837940,-686.96898964,9.539e-05,2]
[344494399,1733515837971,-119.48001036,9.539e-05,2]
[344494400,1733515837980,-315.02497175,9.56e-05,2]
[344494401,1733515837994,-8017.1153762,9.581e-05,2]
[344494402,1733515838003,-2000.0,9.588e-05,2]
[344494403,1733515838012,-897.33,9.588e-05,2]
[344494404,1733515838022,-7559.84964169,9.589e-05,2]
[344494406,1733515838033,-557.30971306,9.589e-05,2]
[344494408,1733515839752,-23229.49469178,9.589e-05,2]
[344494409,1733515839763,-27375.07852423,9.589e-05,2]
[344494410,1733515839860,-433.242,9.589e-05,2]
[344494411,1733515839877,-3389.70955934,9.589e-05,2]
[344494412,1733515839888,-288.01749999,9.589e-05,2]
[344494413,1733515839899,-1428.29128336,9.589e-05,2]
[344494414,1733515839913,-312.807785,9.589e-05,2]
[344494415,1733515839925,-814.6,9.589e-05,2]
[344494416,1733515839938,-1271.5,9.589e-05,2]
[344494417,1733515839948,-323.6499405,9.589e-05,2]
[344494558,1733515842799,-25365.0,9.589e-05,2]
[344494559,1733515842810,-5991.0,9.589e-05,2]
[344494560,1733515842820,-872.68645502,9.589e-05,2]
[344494561,1733515842850,-306912.0,9.589e-05,2]
[344494562,1733515843009,-275.20038004,9.589e-05,2]
[344494563,1733515843064,-6277.75970513,9.589e-05,2]
[344494564,1733515843075,-12647.92392527,9.589e-05,2]
[344494592,1733515846018,-2349.796696,9.489e-05,2]
[344494593,1733515846029,-150.203304,9.489e-05,2]
[344494594,1733515846038,-26739.212631,9.589e-05,2]
[344494595,1733515846050,-62577.201225,9.589e-05,2]
[344494611,1733516904968,300000.0,0.0002,120]
[344494612,1733516904997,930974.7762341,0.0002,120]
[344494613,1733516905035,8313989.94610551,0.0002,120]
[344494641,1733517031916,-200.0,7.68e-05,2]
[344494642,1733517031925,-200.0,7.681e-05,2]
[344494643,1733517031934,-109.22801043,7.681e-05,2]
[344494644,1733517031948,-90.77198957,7.681e-05,2]
[344494645,1733517031963,-200.0,7.683e-05,2]
[344494646,1733517031973,-200.0,7.684e-05,2]
[344494647,1733517031982,-58.53701043,7.687e-05,2]
[344494648,1733517031992,-141.46298957,7.687e-05,2]
[344494649,1733517032002,-200.0,7.687e-05,2]
[344494650,1733517032011,-200.0,7.687e-05,2]
[344494651,1733517032020,-200.0,7.688e-05,2]
[344494652,1733517032030,-200.0,7.69e-05,2]
[344494653,1733517032039,-200.0,7.693e-05,2]
[344494654,1733517032051,-231.77,8.05e-05,2]
[344494655,1733517032060,-150.0,8.069e-05,2]
[344494656,1733517032070,-250.0,8.085e-05,2]
[344494657,1733517032079,-7776.22447371,8.085e-05,2]
[344494658,1733517032089,-7776.22447369,8.138e-05,2]
[344494659,1733517032099,-282.65,8.191e-05,2]
[344494660,1733517032108,-7776.22447369,8.191e-05,2]
[344494661,1733517032117,-2443.04,8.219e-05,2]
[344494662,1733517032128,-1000.0,8.219e-05,2]
[344494663,1733517032139,-471.723148,8.255e-05,2]
[344494664,1733517032148,-250.0,8.257e-05,2]
[344494665,1733517032157,-300.0,8.264e-05,2]
[344494666,1733517032166,-3172.96,8.265e-05,2]
[344494667,1733517032175,-256.0,8.327e-05,2]
[344494668,1733517032185,-471.723148,8.358e-05,2]
[344494669,1733517032195,-150.0,8.359e-05,2]
[344494670,1733517032205,-150.0,8.359e-05,2]
[344494671,1733517032213,-150.0,8.359e-05,2]
[344494672,1733517032223,-150.0,8.359e-05,2]
[344494673,1733517032233,-150.0,8.36e-05,2]
[344494674,1733517032242,-235.78,8.414e-05,2]
[344494675,1733517032251,-471.723148,8.461e-05,2]
[344494676,1733517032261,-169.9,8.488e-05,2]
[344494677,1733517032272,-282.65,8.494e-05,2]
[344494678,1733517032282,-471.723148,8.564e-05,2]
[344494679,1733517032292,-471.723148,8.667e-05,2]
[344494680,1733517032307,-150.0,8.768e-05,2]
[344494681,1733517032319,-435.17,8.793e-05,2]
[344494682,1733517032332,-435.17,8.793e-05,2]
[344494683,1733517032345,-435.17,8.793e-05,2]
[344494684,1733517032358,-282.65,8.797e-05,2]
[344494685,1733517032370,-200.0,8.915e-05,2]
[344494686,1733517032380,-150.0,8.928e-05,2]
[344494687,1733517032390,-231.77,9.057e-05,2]
[344494688,1733517032401,-420.0,9.091e-05,2]
[344494689,1733517032413,-150.0,9.1e-05,2]
[344494690,1733517032424,-282.65,9.1e-05,2]
[344494691,1733517032436,-538.072,9.11e-05,2]
[344494692,1733517032448,-475.0,9.17e-05,2]
[344494693,1733517032459,-150.0,9.181e-05,2]
[344494694,1733517032471,-150.0,9.181e-05,2]
[344494695,1733517032482,-150.0,9.181e-05,2]
[344494696,1733517032495,-150.0,9.181e-05,2]
[344494697,1733517032506,-150.0,9.181e-05,2]
[344494698,1733517032517,-150.0,9.181e-05,2]
[344494699,1733517032528,-150.0,9.181e-05,2]
[344494700,1733517032539,-150.0,9.181e-05,2]
[344494701,1733517032550,-150.0,9.181e-05,2]
[344494702,1733517032560,-300.0,9.181e-05,2]
[344494703,1733517032571,-150.0,9.181e-05,2]
[344494704,1733517032584,-150.0,9.181e-05,2]
[344494705,1733517032596,-176.34,9.219e-05,2]
[344494706,1733517032607,-174.8975,9.229e-05,2]
[344494707,1733517032619,-1000.0,9.247e-05,2]
[344494708,1733517032630,-645.159,9.247e-05,2]
[344494709,1733517032642,-282.65,9.403e-05,2]
[344494710,1733517032653,-563.0,9.458e-05,2]
[344494711,1733517032664,-1893.0,9.458e-05,2]
[344494712,1733517032677,-3761.0,9.458e-05,2]
[344494713,1733517032690,-816.0,9.458e-05,2]
[344494714,1733517032704,-1252.0,9.458e-05,2]
[344494715,1733517032715,-535.0,9.458e-05,2]
[344494716,1733517032727,-3529.0,9.458e-05,2]
[344494717,1733517032738,-973.0,9.458e-05,2]
[344494718,1733517032750,-1098.0,9.458e-05,2]
[344494719,1733517032762,-5964.0,9.458e-05,2]
[344494720,1733517032774,-150.0,9.458e-05,2]
[344494721,1733517032785,-268.501,9.458e-05,2]
[344494722,1733517032796,-633.0,9.458e-05,2]
[344494723,1733517032807,-235.78,9.466e-05,2]
[344494724,1733517032818,-1998.2,9.488e-05,2]
[344494725,1733517032829,-2500.0,9.488e-05,2]
[344494726,1733517032839,-2500.0,9.488e-05,2]
[344494727,1733517032851,-2519.4104,9.489e-05,2]
[344494728,1733517032862,-500.0,9.489e-05,2]
[344494729,1733517032873,-157.51248588,9.499e-05,2]
[344494730,1733517032884,-638.91759667,9.563e-05,2]
[344494731,1733517032895,-500.0,9.563e-05,2]
[344494732,1733517032907,-500.0,9.563e-05,2]
[344494733,1733517032918,-11371.1876388,9.581e-05,2]
[344494734,1733517032929,-5773.6020026,9.581e-05,2]
[344494735,1733517032939,-790.7904812,9.581e-05,2]
[344494736,1733517032951,-1000.0,9.588e-05,2]
[344494737,1733517032961,-1000.0,9.588e-05,2]
[344494738,1733517032972,-1000.0,9.588e-05,2]
[344494739,1733517032982,-1000.0,9.588e-05,2]
[344494740,1733517032993,-1000.0,9.588e-05,2]
[344494741,1733517033006,-1000.0,9.588e-05,2]
[344494742,1733517033019,-1000.0,9.588e-05,2]
[344494743,1733517033030,-1000.0,9.588e-05,2]
[344494744,1733517033041,-1000.0,9.588e-05,3]
[344494745,1733517033056,-1000.0,9.588e-05,3]
[344494746,1733517033066,-1000.0,9.588e-05,3]
[344494747,1733517033077,-1000.0,9.588e-05,3]
[344494748,1733517033088,-1000.0,9.588e-05,3]
[344494749,1733517033099,-1000.0,9.588e-05,3]
[344494750,1733517033110,-1000.0,9.588e-05,3]
[344494751,1733517033123,-1000.0,9.588e-05,3]
[344494752,1733517033135,-1000.0,9.588e-05,3]
[344494753,1733517033146,-1000.0,9.588e-05,3]
[344494754,1733517033157,-1500.0,9.588e-05,2]
[344494755,1733517033167,-2000.0,9.588e-05,2]
[344494756,1733517033178,-1500.0,9.588e-05,2]
[344494757,1733517033188,-859.94,9.588e-05,2]
[344494758,1733517033201,-632.41407761,9.588e-05,2]
[344494759,1733517033211,-24936.56159105,9.589e-05,2]
[344494760,1733517033777,-1150.0,9.589e-05,2]
[344494761,1733517033790,-1632.45000001,9.589e-05,2]
[344494762,1733517033998,-167622.5184854,9.589e-05,2]
[344494763,1733517034024,-2150.955538,9.589e-05,2]
[344494768,1733517037855,-392.94026559,9.458e-05,2]
[344494769,1733517037914,-500.0,9.458e-05,2]
[344494770,1733517037927,-273.05973441,9.458e-05,2]
[344494771,1733517037937,-2999.24026559,9.589e-05,2]
[344494772,1733517037949,-465.36000012,9.589e-05,2]
[344494773,1733517037967,-743.65999995,9.589e-05,2]
[344494774,1733517037988,-41391.03958707,9.589e-05,2]
[344494775,1733517038000,-10985.55453406,9.589e-05,2]
[344494776,1733517038012,-326.82220256,9.589e-05,2]
[344494777,1733517038038,-2439.0256075,9.589e-05,2]
[344494778,1733517038056,-44099.9995,9.589e-05,2]
[344494779,1733517038069,-534.22775349,9.589e-05,2]
[344494780,1733517038081,-62104.54430592,9.589e-05,2]
[344494781,1733517038093,-3264.13760739,9.589e-05,2]
[344494782,1733517038135,-1960.7939663,9.589e-05,2]
[344494783,1733517038147,-12311.62956835,9.589e-05,2]
[344494784,1733517038216,-816.66,9.589e-05,2]
[344494802,1733517039797,-1525.65,9.589e-05,2]
[344494803,1733517039861,-97389.36626377,9.589e-05,2]
[344494804,1733517039872,-22592.17414197,9.589e-05,2]
[344494805,1733517039928,-1906.35,9.589e-05,2]
[344494806,1733517039943,-1016.5,9.589e-05,2]
[344494807,1733517039993,-861.44651629,9.589e-05,2]
[344494808,1733517040004,-1301.6223863,9.589e-05,2]
[344494809,1733517040016,-28082.131,9.589e-05,2]
[344494812,1733517042893,-2004.0,9.458e-05,2]
[344494813,1733517042903,-7554.04178323,9.589e-05,2]
[344494814,1733517042913,-3804.80782807,9.589e-05,2]
[344494816,1733517042957,-3042.216401,9.589e-05,2]
[344494817,1733517043018,-32666.40000004,9.589e-05,2]
[344494818,1733517043030,-733.39289115,9.589e-05,2]
[344494819,1733517043076,-36649.36115,9.589e-05,2]
[344494820,1733517043087,-2824.24283716,9.589e-05,2]
[344494821,1733517043099,-10491.51099998,9.589e-05,2]
[344494822,1733517043110,-6883.4401112,9.589e-05,2]
[344494823,1733517043150,-670.0119972,9.589e-05,2]
[344494824,1733517043161,-5256.5,9.589e-05,2]
[344494825,1733517043172,-997.19673,9.589e-05,2]
[344494826,1733517043183,-1193.95001,9.589e-05,2]
[344494827,1733517043195,-3619.81305,9.589e-05,2]
[344494828,1733517043207,-312.9887792,9.589e-05,2]
[344494829,1733517043315,-2541.6502226,9.589e-05,2]
[344494830,1733517043326,-3038.60676,9.589e-05,2]
[344494831,1733517043383,-502.47959999,9.589e-05,2]
[344494926,1733517045935,-631.0,9.458e-05,2]
[344494927,1733517045945,-28803.89994693,9.589e-05,2]
[344494928,1733517045957,-40221.10429926,9.589e-05,2]
[344494929,1733517046053,-370.58734935,9.589e-05,2]
[344494930,1733517046065,-658957.46667001,9.589e-05,2]
[344494931,1733517046077,-4114.044955,9.589e-05,2]
[344494932,1733517046152,-7664.2,9.589e-05,2]
[344494933,1733517046165,-62647.36566979,9.589e-05,2]
[344494934,1733517046243,-20385.09217034,9.589e-05,2]
[344494936,1733517046254,-3639.13601079,9.589e-05,2]
[344494939,1733517046265,-50467.7274,9.589e-05,2]
[344494940,1733517046277,-1264.76750391,9.589e-05,2]
[344494941,1733517046288,-1241.41183291,9.589e-05,2]
[344494942,1733517046300,-4077.6,9.589e-05,2]
[344494944,1733517046328,-5690.59113348,9.589e-05,2]
[344494950,1733517413329,174.43,6.858e-05,2]
[344494959,1733518149851,174.29,6.292e-05,2]
[344494960,1733518176301,167.99,7.397e-05,2]
[344494966,1733518232180,-11741.82690956,7.677e-05,2]
[344494967,1733518232190,-200.0,7.677e-05,2]
[344494968,1733518232200,-20874.35895033,7.677e-05,2]
[344494969,1733518232210,-15268.08774011,7.677e-05,2]
[344494970,1733518232247,-339.27682,7.677e-05,2]
[344494971,1733518232295,-48.40465264,7.677e-05,2]
[344494972,1733518232305,-1017.88710186,7.677e-05,2]
[344494973,1733518232318,-1998.21669,7.677e-05,2]
[344494974,1733518232347,-17858.25515847,7.677e-05,2]
[344494975,1733518232357,-200.0,7.677e-05,2]
[344494976,1733518232367,-1234.86137,7.678e-05,2]
[344494977,1733518232376,-200.0,7.678e-05,2]
[344494978,1733518232386,-1646.48182653,7.678e-05,2]
[344494979,1733518232395,-15655.76921275,7.679e-05,2]
[344494980,1733518232405,-200.0,7.68e-05,2]
[344494981,1733518232414,-200.0,7.68e-05,2]
[344494982,1733518232427,-8917.26433895,7.68e-05,2]
[344494983,1733518232439,-2824.56257061,7.68e-05,2]
[344494984,1733518232449,-15655.76921275,7.681e-05,2]
[344494985,1733518232463,-200.0,7.681e-05,2]
[344494986,1733518232482,-200.0,7.682e-05,2]
[344494987,1733518232492,-15655.76921275,7.683e-05,2]
[344494988,1733518232503,-15655.76921275,7.684e-05,2]
[344494989,1733518232513,-200.0,7.685e-05,2]
[344494990,1733518232523,-1234.86137,7.685e-05,2]
[344494991,1733518232532,-200.0,7.685e-05,2]
[344494992,1733518232543,-200.0,7.686e-05,2]
[344494993,1733518232553,-13015.33946939,7.687e-05,2]
[344494994,1733518234102,-7859.01948094,7.687e-05,2]
[344494996,1733518234112,-20874.35895033,7.688e-05,2]
[344494998,1733518234122,-200.0,7.688e-05,2]
[344495000,1733518234131,-200.0,7.688e-05,2]
[344495001,1733518234140,-200.0,7.688e-05,2]
[344495002,1733518234149,-200.0,7.688e-05,2]
[344495003,1733518234159,-200.0,7.689e-05,2]
[344495005,1733518234168,-1646.48182653,7.689e-05,2]
[344495007,1733518234179,-200.0,7.689e-05,2]
[344495009,1733518234189,-200.0,7.69e-05,2]
[344495011,1733518234198,-200.0,7.69e-05,2]
[344495013,1733518234207,-11741.82690956,7.69e-05,2]
[344495015,1733518234219,-200.0,7.69e-05,2]
[344495017,1733518234228,-1234.86137,7.691e-05,2]
[344495019,1733518234237,-200.0,7.691e-05,2]
[344495021,1733518234246,-11741.82690956,7.692e-05,2]
[344495023,1733518234255,-200.0,7.692e-05,2]
[344495025,1733518234264,-1234.86137,7.693e-05,2]
[344495027,1733518234274,-20874.35895033,7.693e-05,2]
[344495029,1733518234283,-2117.29913975,7.694e-05,2]
[344495058,1733518238041,-18757.05981058,7.694e-05,2]
[344495059,1733518238051,-200.0,7.695e-05,2]
[344495060,1733518238061,-200.0,7.695e-05,2]
[344495061,1733518238070,-1646.48182653,7.695e-05,2]
[344495062,1733518238079,-1646.48182653,7.695e-05,2]
[344495063,1733518238088,-1234.86137,7.695e-05,2]
[344495064,1733518238097,-1234.86137,7.695e-05,2]
[344495065,1733518238106,-200.0,7.696e-05,2]
[344495066,1733518238115,-11741.82690956,7.696e-05,2]
[344495067,1733518238125,-1646.48182653,7.697e-05,2]
[344495068,1733518238135,-200.0,7.698e-05,2]
[344495069,1733518238144,-200.0,7.698e-05,2]
[344495070,1733518238153,-200.0,7.698e-05,2]
[344495071,1733518238162,-1646.48182653,7.698e-05,2]
[344495072,1733518238171,-11741.82690956,7.698e-05,2]
[344495073,1733518238183,-200.0,7.698e-05,2]
[344495074,1733518238192,-200.0,7.698e-05,2]
[344495075,1733518238202,-15655.76921275,7.699e-05,2]
[344495076,1733518238211,-200.0,7.7e-05,2]
[344495077,1733518238220,-687.8,7.919e-05,2]
[344495078,1733518238230,-965.45,7.921e-05,2]
[344495079,1733518238239,-2143.86,7.93e-05,2]
[344495080,1733518238248,-2981.3,7.936e-05,2]
[344495081,1733518238257,-159.29929669,7.936e-05,2]
[344495082,1733518238266,-871.71,7.938e-05,2]
[344495083,1733518238275,-300.0,8.035e-05,2]
[344495084,1733518238285,-23900.0,8.036e-05,2]
[344495085,1733518238294,-250.0,8.051e-05,2]
[344495086,1733518238303,-375.58962312,8.051e-05,2]
[344495087,1733518238312,-369.81,8.062e-05,2]
[344495088,1733518238321,-200.0,8.076e-05,2]
[344495089,1733518238330,-4222.0,8.144e-05,2]
[344495090,1733518238339,-168.46,8.173e-05,2]
[344495091,1733518238348,-166.81,8.177e-05,2]
[344495092,1733518238357,-193.72,8.185e-05,2]
[344495093,1733518238366,-150.0,8.192e-05,2]
[344495094,1733518238375,-480.75,8.204e-05,2]
[344495095,1733518238384,-461.54,8.219e-05,2]
[344495096,1733518238393,-2844.98,8.219e-05,2]
[344495097,1733518238403,-1000.0,8.219e-05,2]